{"text_format":"1","workbook":"xlsx","n_sheets":5,"sheets":["Dataset Overview","Using For Loop Factorial","Use of Do Until Factorial Optio","Utilizing Do While Factorial ","Applying Recursive Factorial"],"not_rendered":{"charts":0,"images":0,"macros":1,"external_links":0,"defined_names":0,"comments":0,"pivot_tables":0},"unopened":[],"bounds":{"document_bytes":16777216,"sheet_cells":100000,"rows_first":2000,"rows_last":500,"rows_between":2000,"halvings":0,"cell_chars":16384,"cell_head_chars":4096},"cells_cut":0,"cells_raw":0,"read":"whole","date_system":"1900"}

{"sheet":"Dataset Overview","index":0,"n_rows":12,"n_cols":9,"rows_kept":12,"cut":false,"hidden":false,"merged":[[1,1,1,2],[1,7,1,8]]}
[]
[null,"Dataset Overview",null,null,null,null,null,"Try Yourself"]
[]
[null,"Number","Factorial",null,null,null,null,"Number","Factorial"]
[null,0,null,null,null,null,null,0]
[null,1,null,null,null,null,null,1]
[null,2,null,null,null,null,null,2]
[null,3,null,null,null,null,null,3]
[null,4,null,null,null,null,null,4]
[null,5,null,null,null,null,null,5]
[null,6,null,null,null,null,null,6]
[null,7,null,null,null,null,null,7]

{"sheet":"Using For Loop Factorial","index":1,"n_rows":12,"n_cols":9,"rows_kept":12,"cut":false,"hidden":false,"merged":[[1,1,1,2],[1,7,1,8]]}
[]
[null,"Using For Loop Factorial",null,null,null,null,null,"Try Yourself"]
[]
[null,"Number","Factorial",null,null,null,null,"Number","Factorial"]
[null,0,{"$f":"FactorialUsingForLoop(B5)","v":1},null,null,null,null,0]
[null,1,{"$f":"FactorialUsingForLoop(B6)","v":1},null,null,null,null,1]
[null,2,{"$f":"FactorialUsingForLoop(B7)","v":2},null,null,null,null,2]
[null,3,{"$f":"FactorialUsingForLoop(B8)","v":6},null,null,null,null,3]
[null,4,{"$f":"FactorialUsingForLoop(B9)","v":24},null,null,null,null,4]
[null,5,{"$f":"FactorialUsingForLoop(B10)","v":120},null,null,null,null,5]
[null,6,{"$f":"FactorialUsingForLoop(B11)","v":720},null,null,null,null,6]
[null,7,{"$f":"FactorialUsingForLoop(B12)","v":5040},null,null,null,null,7]

{"sheet":"Use of Do Until Factorial Optio","index":2,"n_rows":12,"n_cols":9,"rows_kept":12,"cut":false,"hidden":false,"merged":[[1,1,1,2],[1,7,1,8]]}
[]
[null,"Use of Do Until Factorial Option",null,null,null,null,null,"Try Yourself"]
[]
[null,"Number","Factorial",null,null,null,null,"Number","Factorial"]
[null,0,{"$f":"FactorialUsingDoUntil(B5)","v":1},null,null,null,null,0]
[null,1,{"$f":"FactorialUsingDoUntil(B6)","v":1},null,null,null,null,1]
[null,2,{"$f":"FactorialUsingDoUntil(B7)","v":2},null,null,null,null,2]
[null,3,{"$f":"FactorialUsingDoUntil(B8)","v":6},null,null,null,null,3]
[null,4,{"$f":"FactorialUsingDoUntil(B9)","v":24},null,null,null,null,4]
[null,5,{"$f":"FactorialUsingDoUntil(B10)","v":120},null,null,null,null,5]
[null,6,{"$f":"FactorialUsingDoUntil(B11)","v":720},null,null,null,null,6]
[null,7,{"$f":"FactorialUsingDoUntil(B12)","v":5040},null,null,null,null,7]

{"sheet":"Utilizing Do While Factorial ","index":3,"n_rows":12,"n_cols":9,"rows_kept":12,"cut":false,"hidden":false,"merged":[[1,1,1,2],[1,7,1,8]]}
[]
[null,"Utilizing Do While Factorial ",null,null,null,null,null,"Try Yourself"]
[]
[null,"Number","Factorial",null,null,null,null,"Number","Factorial"]
[null,0,{"$f":"FactorialUsingDoWhile(B5)","v":1},null,null,null,null,0]
[null,1,{"$f":"FactorialUsingDoWhile(B6)","v":1},null,null,null,null,1]
[null,2,{"$f":"FactorialUsingDoWhile(B7)","v":2},null,null,null,null,2]
[null,3,{"$f":"FactorialUsingDoWhile(B8)","v":6},null,null,null,null,3]
[null,4,{"$f":"FactorialUsingDoWhile(B9)","v":24},null,null,null,null,4]
[null,5,{"$f":"FactorialUsingDoWhile(B10)","v":120},null,null,null,null,5]
[null,6,{"$f":"FactorialUsingDoWhile(B11)","v":720},null,null,null,null,6]
[null,7,{"$f":"FactorialUsingDoWhile(B12)","v":5040},null,null,null,null,7]

{"sheet":"Applying Recursive Factorial","index":4,"n_rows":12,"n_cols":9,"rows_kept":12,"cut":false,"hidden":false,"merged":[[1,1,1,2],[1,7,1,8]]}
[]
[null,"Applying Recursive Factorial",null,null,null,null,null,"Try Yourself"]
[]
[null,"Number","Factorial",null,null,null,null,"Number","Factorial"]
[null,0,{"$f":"FactorialByRecursion(B5)","v":1},null,null,null,null,0]
[null,1,{"$f":"FactorialByRecursion(B6)","v":1},null,null,null,null,1]
[null,2,{"$f":"FactorialByRecursion(B7)","v":2},null,null,null,null,2]
[null,3,{"$f":"FactorialByRecursion(B8)","v":6},null,null,null,null,3]
[null,4,{"$f":"FactorialByRecursion(B9)","v":24},null,null,null,null,4]
[null,5,{"$f":"FactorialByRecursion(B10)","v":120},null,null,null,null,5]
[null,6,{"$f":"FactorialByRecursion(B11)","v":720},null,null,null,null,6]
[null,7,{"$f":"FactorialByRecursion(B12)","v":5040},null,null,null,null,7]